bitfinex/quotes_ETHUSD_20240701
["timestamp","ask_amount","ask_price","bid_price","bid_amount"]
[1719822997667,0.06599387,3486.7,3486.5,0.2009222]
[1719822998899,0.06599387,3486.7,3486.0,2.86857]
[1719822999065,0.06599387,3486.7,3485.6,1.936]
[1719822999066,3.309617,3488.9,3486.1,3.41848]
[1719822999272,2.86548,3489.9,3486.1,3.41848]
[1719822999273,2.308,3489.2,3488.4,2.86662]
[1719822999595,2.308,3489.2,3487.9,1.936]
[1719822999596,2.825388,3489.2,3488.5,3.41654]
[1719822999925,2.308,3489.2,3488.6,2.86645]
[1719823000262,2.308,3489.2,3488.7,2.86636]
[1719823000467,5.15097,3489.7,3488.8,0.05732027]
[1719823000917,2.86568,3489.6,3488.8,0.05732027]
[1719823001287,2.86575,3489.5,3488.8,0.05732027]
[1719823001472,0.515115,3489.4,3488.7,2.86639]
[1719823002828,0.515115,3489.4,3488.8,2.8663]
[1719823002971,0.515115,3489.4,3488.7,2.86632]
[1719823004706,3.380935,3489.4,3488.6,2.86646]
[1719823007903,2.866,3489.2,3488.5,3.41655]
[1719823008170,2.866,3489.2,3488.5,4.238483]
[1719823009219,2.86606,3489.1,3488.5,1.371933]
[1719823013182,2.86594,3489.3,3488.5,4.238483]
[1719823013377,2.86604,3489.2,3488.5,4.238483]
[1719823013582,2.86604,3489.2,3488.6,0.9041183]
[1719823014526,2.86606,3489.1,3488.6,0.9041183]
[1719823018195,2.86615,3489.0,3488.6,0.9041183]
[1719823018609,2.86615,3489.0,3488.5,0.55]
[1719823018839,2.86615,3489.0,3488.4,0.55]
[1719823019434,2.8668,3488.3,3488.1,7.32]
[1719823019746,2.8668,3488.3,3487.5,9.6619]
[1719823019747,2.86697,3488.0,3487.5,9.6619]
[1719823019888,2.86697,3488.0,3487.6,0.96619]
[1719823020093,2.86686,3488.2,3487.6,0.96619]
[1719823020543,2.86719,3487.8,3487.5,7.32]
[1719823020695,2.8673,3487.6,3487.2,19.49]
[1719823020895,2.8673,3487.6,3486.9,2.311]
[1719823021096,3.0,3488.5,3487.0,1.443495]
[1719823021097,2.86763,3487.2,3487.0,1.443495]
[1719823021304,2.86771,3487.1,3487.0,1.443495]
[1719823021531,2.86771,3487.1,3486.7,9.256]
[1719823021532,2.86771,3487.1,3486.7,7.32]
[1719823022519,2.3648,3487.9,3486.2,7.32]
[1719823022836,2.86813,3486.6,3486.2,7.32]
[1719823023133,2.86813,3486.6,3485.8,4.80472]
[1719823023831,3.023,3489.0,3486.4,2.86821]
[1719823024039,3.023,3489.0,3485.8,1.724]
[1719823024040,2.8673,3487.6,3486.7,1.936]
[1719823024197,2.8673,3487.6,3486.8,0.05734918]
[1719823025030,2.8673,3487.6,3486.9,0.55]
[1719823025201,2.8673,3487.6,3487.0,0.05734919]
[1719823025811,2.86748,3487.4,3487.0,0.05734919]
[1719823025995,2.86748,3487.4,3487.0,0.59848611]
[1719823028125,2.8674,3487.5,3487.1,0.55]
[1719823028333,2.8674,3487.5,3487.2,0.05734594]
[1719823028507,2.86747,3487.4,3487.1,0.55]
[1719823028708,2.86756,3487.3,3487.1,0.55]
[1719823029236,2.86756,3487.3,3486.6,2.86809]
[1719823029532,2.86763,3487.2,3486.7,2.1361471]
[1719823029915,2.86792,3486.9,3486.7,0.55]
[1719823030100,2.86801,3486.8,3486.5,7.32]
[1719823030306,2.86801,3486.8,3486.0,12.6739]
[1719823030538,2.86801,3486.8,3486.0,9.8053]
[1719823030700,2.86815,3486.6,3486.1,2.86143501]
[1719823031310,2.86759,3487.3,3486.1,2.86143501]
[1719823031311,2.86827,3486.5,3486.1,2.86143501]
[1719823032433,2.86829,3486.4,3486.1,2.86143501]
[1719823033005,2.86813,3486.6,3486.2,0.55]
[1719823033336,2.86813,3486.6,3486.2,0.522]
[1719823033698,2.86821,3486.5,3486.2,0.522]
[1719823033902,2.86821,3486.5,3486.0,7.32]
[1719823033903,2.86821,3486.5,3486.1,0.55]
[1719823034207,2.86821,3486.5,3486.1,1.817477]
[1719823034935,3.01021,3486.5,3486.1,1.817477]
[1719823035434,0.142,3486.5,3486.1,1.817477]
[1719823036232,0.142,3486.5,3486.2,2.92575006]
[1719823036403,0.142,3486.5,3486.3,0.60735516]
[1719823036604,0.142,3486.5,3486.4,0.81617222]
[1719823036909,0.142,3486.5,3486.4,1.36617222]
[1719823039149,0.142,3486.5,3486.2,1.936]
[1719823039451,0.142,3486.5,3486.1,1.267477]
[1719823039604,0.142,3486.5,3486.2,0.55]
[1719823039809,0.142,3486.5,3486.0,3.4186]
[1719823041048,0.142,3486.5,3486.1,2.9258717]
[1719823041226,0.142,3486.5,3486.2,0.55]
[1719823041434,0.142,3486.5,3486.3,0.05735784]
[1719823041618,0.142,3486.5,3486.4,0.89757778]
[1719823042915,0.142,3486.5,3486.4,0.55]
[1719823043116,0.142,3486.5,3486.1,0.55]
[1719823044050,2.86834,3486.4,3485.9,0.55]
[1719823044368,2.86834,3486.4,3485.7,7.32]
[1719823044648,5.73679,3486.3,3485.8,0.05736854]
[1719823044829,2.86837,3486.3,3485.8,0.05736854]
[1719823045013,2.86845,3486.2,3485.8,0.05736854]
[1719823045211,2.86845,3486.2,3485.5,2.81902]
[1719823045453,2.86854,3486.1,3485.5,0.63481766]
[1719823046150,2.86861,3486.0,3485.6,0.55]
[1719823046351,2.86861,3486.0,3485.5,0.55]
[1719823046512,2.86839,3486.3,3485.5,0.55]
[1719823046513,2.86851,3486.2,3485.5,0.55]
[1719823046714,2.86839,3486.3,3485.5,0.55]
[1719823047145,2.86855,3486.1,3485.5,0.55]
[1719823047351,2.86848,3486.2,3485.7,1.936]
[1719823048318,2.8683,3486.4,3485.8,0.05736956]
[1719823049156,0.142,3486.5,3485.8,0.05736956]
[1719823049659,2.86828,3486.4,3485.8,0.05736956]
[1719823049827,0.142,3486.5,3485.8,0.05736956]
[1719823049828,0.142,3486.5,3485.9,2.86867]
[1719823050153,0.142,3486.5,3486.0,1.32308896]
[1719823050376,3.01021,3486.5,3486.0,1.32308896]
[1719823051142,0.142,3486.5,3485.7,1.936]
[1719823051343,0.142,3486.5,3485.8,0.60736867]
[1719823051604,2.86845,3486.2,3485.8,0.60736867]
[1719823051743,3.0102,3486.5,3485.8,0.60736867]
[1719823051744,2.86833,3486.4,3485.8,0.60736867]
[1719823052088,2.86833,3486.4,3485.8,1.24666654]
[1719823053383,0.142,3486.5,3485.8,4.11542654]
[1719823053750,3.01026,3486.5,3485.8,4.11542654]
[1719823054767,3.01026,3486.5,3485.8,0.63929787]
[1719823054976,2.86828,3486.4,3485.9,0.05736987]
[1719823056303,0.142,3486.5,3485.9,0.60752264]
[1719823056304,3.0102,3486.5,3485.9,0.60752264]
[1719823056595,3.0102,3486.5,3486.0,0.55]
[1719823057406,2.86838,3486.3,3486.0,0.55]
[1719823057755,2.86838,3486.3,3485.9,0.55015277]
[1719823058310,2.86838,3486.3,3485.7,1.936]
[1719823058311,2.86846,3486.2,3485.6,2.86887]
[1719823058524,2.86846,3486.2,3485.7,0.55]
[1719823059053,2.86846,3486.2,3485.6,0.55]
[1719823059410,2.86861,3486.0,3485.5,0.55]
[1719823060164,2.8687,3485.9,3485.4,7.32]
[1719823060471,2.8687,3485.9,3485.2,1.936]
[1719823061556,2.8687,3485.9,3485.3,0.55]
[1719823061757,2.86892,3485.7,3485.3,0.55]
[1719823062758,2.86879,3485.8,3485.3,0.55]
[1719823063613,2.86891,3485.7,3485.3,0.55]
[1719823063916,2.86895,3485.6,3485.3,0.55]
[1719823064058,2.86919,3485.4,3485.1,7.325]
[1719823064655,2.86897,3485.6,3485.1,7.325]
[1719823064861,2.86864,3486.0,3485.1,7.325]
[1719823064862,2.86906,3485.5,3485.1,7.325]
[1719823065294,2.86919,3485.3,3485.1,7.325]
[1719823065671,2.86906,3485.5,3485.1,7.325]
[1719823065995,2.86912,3485.4,3485.1,7.325]
[1719823066201,2.86901,3485.6,3485.1,0.005]
[1719823066863,2.86888,3485.7,3485.1,0.005]
[1719823067071,2.86888,3485.7,3485.1,0.83474024]
[1719823067399,2.86888,3485.7,3485.2,0.55]
[1719823068594,2.86888,3485.7,3485.2,0.60737848]
[1719823068798,2.86883,3485.8,3485.2,0.60737848]
[1719823069039,2.86883,3485.8,3485.3,1.936]
[1719823069177,2.86883,3485.8,3485.3,1.99337843]
[1719823069366,2.86887,3485.7,3485.3,1.99337843]
[1719823070060,2.86875,3485.9,3485.3,1.99337843]
[1719823070262,2.86879,3485.8,3485.3,1.99337843]
[1719823070459,2.86888,3485.7,3485.3,1.99337843]
[1719823070695,2.86888,3485.7,3485.3,1.936]
[1719823071000,2.86895,3485.6,3485.3,1.936]
[1719823072170,2.86895,3485.6,3485.2,0.55]
[1719823072371,2.86887,3485.7,3485.1,0.555]
[1719823072594,3.155757,3485.7,3485.2,0.55]
[1719823072825,3.155757,3485.7,3485.1,0.005]
[1719823072977,2.86887,3485.7,3485.1,0.005]
[1719823073625,2.86917,3485.4,3485.1,0.005]
[1719823074126,2.8692,3485.3,3485.1,0.005]
[1719823074325,2.86908,3485.5,3485.1,0.005]
[1719823074530,2.86908,3485.5,3485.1,0.06238089]
[1719823074689,2.86908,3485.5,3485.2,1.936]
[1719823076816,2.86919,3485.3,3485.1,0.005]
[1719823077630,2.86903,3485.5,3485.1,0.005]
[1719823077631,2.86927,3485.2,3485.1,0.005]
[1719823085298,5.73854,3485.2,3485.1,0.005]
[1719823092656,2.86927,3485.2,3485.1,0.005]
[1719823092815,2.86912,3485.4,3485.1,0.005]
[1719823093006,2.8692,3485.3,3485.1,0.005]
[1719823093404,2.86903,3485.5,3485.1,0.005]
[1719823093607,2.86912,3485.4,3485.1,0.005]
[1719823094041,3.0,3485.8,3485.1,0.005]
[1719823094042,2.86927,3485.2,3485.1,0.005]
[1719823098630,6.312382,3485.2,3485.1,0.005]
[1719823098933,8.03184,3485.2,3485.1,0.005]
[1719823099351,2.86927,3485.2,3485.1,0.005]
[1719823099559,2.86913,3485.4,3485.1,0.005]
[1719823099893,2.8692,3485.3,3485.1,0.005]
[1719823100551,2.86927,3485.2,3485.1,0.005]
[1719823102393,2.86927,3485.2,3484.6,6.16180217]
[1719823102598,2.86927,3485.2,3484.7,0.55]
[1719823102744,2.86927,3485.2,3484.5,0.55]
[1719823103151,2.8692,3485.3,3484.5,3.41982]
[1719823103460,2.86927,3485.2,3484.5,3.41982]
[1719823103662,2.86927,3485.2,3484.5,5.02356156]
[1719823103865,2.86916,3485.4,3484.6,2.86975]
[1719823104173,2.8692,3485.3,3484.7,0.55]
[1719823105853,2.8692,3485.3,3484.9,0.808]
[1719823106917,2.8692,3485.3,3484.9,0.558]
[1719823107417,2.86911,3485.4,3484.9,0.558]
[1719823107616,2.86919,3485.3,3484.9,0.558]
[1719823109221,2.86919,3485.3,3485.2,0.808]
[1719823109423,2.86911,3485.4,3485.2,0.808]
[1719823110917,2.86905,3485.5,3485.2,0.808]
[1719823111114,3.0,3485.8,3485.4,0.808]
[1719823111313,2.86908,3485.5,3484.9,6.16180217]
[1719823111506,2.86908,3485.5,3485.0,1.79807828]
[1719823111702,2.86908,3485.5,3485.4,0.808]
[1719823111926,2.86894,3485.6,3485.4,0.808]
[1719823112533,2.86902,3485.5,3485.4,0.808]
[1719823113343,5.8688,3485.8,3485.4,0.808]
[1719823113344,2.86896,3485.6,3485.4,0.808]
[1719823114830,2.86902,3485.5,3485.4,0.808]
[1719823115174,2.86911,3485.4,3485.2,0.808]
[1719823115469,2.86911,3485.4,3484.9,6.16180217]
[1719823115784,2.86929,3485.2,3484.9,6.16180217]
[1719823115942,2.86929,3485.2,3485.0,0.808]
[1719823116340,2.86918,3485.4,3485.0,0.808]
[1719823116892,2.86861,3486.0,3485.3,3.67713]
[1719823117089,2.86861,3486.0,3485.8,0.808]
[1719823117595,2.86861,3486.0,3485.6,0.808]
[1719823118449,2.86871,3485.9,3485.6,0.808]
[1719823119324,2.86871,3485.9,3485.2,0.808]
[1719823119325,0.80617,3485.9,3485.2,0.808]
[1719823119478,2.86883,3485.8,3485.2,0.808]
[1719823119677,2.86871,3485.9,3485.2,0.808]
[1719823120916,2.86896,3485.6,3485.2,0.808]
[1719823121265,2.86882,3485.8,3485.2,0.808]
[1719823121884,2.86882,3485.8,3485.2,0.758]
[1719823122085,2.86882,3485.8,3485.0,2.86943]
[1719823122086,2.86882,3485.8,3485.4,0.808]
[1719823126410,2.86862,3486.0,3485.0,2.92681207]
[1719823126411,2.86886,3485.7,3485.1,0.808]
[1719823126561,2.86886,3485.7,3485.2,0.55]
[1719823127809,2.86906,3485.5,3484.9,6.16180217]
[1719823127981,2.86906,3485.5,3485.1,0.808]
[1719823128383,2.86886,3485.7,3485.1,0.808]
[1719823129107,2.86894,3485.6,3485.1,0.808]
[1719823130422,2.86895,3485.6,3485.0,0.55]
[1719823130585,2.86895,3485.6,3485.1,0.808]
[1719823130787,2.86909,3485.5,3485.1,0.808]
[1719823131390,2.86912,3485.4,3485.1,0.808]
[1719823132433,2.86912,3485.4,3485.0,0.55]
[1719823132723,2.86919,3485.3,3484.8,0.55]
[1719823132949,2.86904,3485.5,3484.8,0.55]
[1719823132950,2.86927,3485.2,3484.8,0.55]
[1719823133449,2.86927,3485.2,3484.7,0.55]
[1719823133791,2.86927,3485.2,3484.6,0.55]
[1719823134435,2.86965,3484.8,3484.3,8.56270217]
[1719823134742,2.86965,3484.8,3484.6,0.808]
[1719823135593,2.3067,3485.5,3484.7,0.55]
[1719823135797,2.59449412,3485.5,3484.9,0.808]
[1719823136104,2.8694,3485.1,3484.7,1.358]
[1719823136318,2.86944,3485.0,3484.7,1.358]
[1719823137099,2.86956,3484.9,3484.7,0.808]
[1719823139241,2.86956,3484.9,3484.3,8.56270217]
[1719823139439,2.86956,3484.9,3484.8,0.808]
[1719823140107,2.86944,3485.0,3484.8,0.808]
[1719823140914,2.86952,3484.9,3484.6,0.808]
[1719823141116,2.86952,3484.9,3484.8,0.808]
[1719823142942,2.86929,3485.2,3484.8,0.808]
[1719823143247,2.86946,3485.0,3484.8,0.808]
[1719823143547,2.86916,3485.4,3484.8,0.808]
[1719823143839,2.86916,3485.4,3485.1,0.808]
[1719823146471,2.86927,3485.2,3484.9,1.358]
[1719823147264,2.8694,3485.1,3484.8,0.808]
[1719823147478,2.86944,3485.0,3484.6,0.758]
[1719823147676,2.86944,3485.0,3484.7,0.55]
[1719823147975,2.86944,3485.0,3484.8,0.808]
[1719823148139,2.86927,3485.2,3484.8,0.808]
[1719823148345,2.86927,3485.2,3485.1,0.808]
[1719823149158,3.48284835,3485.2,3485.1,0.808]
[1719823149330,2.8694,3485.1,3484.9,0.808]
[1719823149983,2.86929,3485.2,3484.9,0.808]
[1719823150485,2.8692,3485.3,3484.9,0.808]
[1719823150662,2.86944,3485.0,3484.9,0.808]
[1719823151031,2.86953,3484.9,3484.3,8.56930217]
[1719823151230,2.86953,3484.9,3484.8,0.808]
[1719823152243,2.8697,3484.7,3484.6,0.808]
[1719823152583,2.86953,3484.9,3484.6,0.808]
[1719823153077,2.8696,3484.8,3484.6,0.808]
[1719823154483,2.86968,3484.7,3484.6,0.808]
[1719823155193,2.86968,3484.7,3484.3,8.56930217]
[1719823155194,2.86993,3484.4,3484.3,6.16180217]
[1719823155385,0.808,3485.2,3484.1,19.9904176]
[1719823155386,2.86985,3484.5,3484.1,0.1204176]
[1719823155540,2.86978,3484.6,3484.1,0.1204176]
[1719823155881,2.2501,3484.9,3484.5,0.808]
[1719823155882,2.8696,3484.9,3484.5,0.808]
[1719823156036,2.8696,3484.8,3484.7,0.808]
[1719823156348,5.8696,3484.8,3484.7,0.808]
[1719823156729,2.3608,3485.2,3484.7,0.808]
[1719823156730,2.8695,3485.0,3484.7,0.808]
[1719823157143,2.86952,3484.9,3484.7,0.808]
[1719823158547,2.86929,3485.2,3484.7,0.808]
[1719823158747,2.86929,3485.2,3485.0,0.808]
[1719823161473,2.4897,3485.9,3485.0,0.808]
[1719823161684,2.86861,3486.0,3485.8,0.808]
[1719823162276,2.86853,3486.1,3485.2,2.8692]
[1719823162597,2.86853,3486.1,3485.8,0.808]
[1719823163306,2.86862,3486.0,3485.6,0.808]
[1719823164607,2.86858,3486.1,3485.6,0.808]
[1719823164904,2.86846,3486.2,3485.6,0.808]
[1719823165078,2.86867,3486.0,3485.4,0.808]
[1719823165286,2.86877,3485.9,3485.4,0.808]
[1719823165667,2.869,3485.6,3484.9,2.2864]
[1719823165873,2.86927,3485.3,3484.8,6.16180217]
[1719823166204,2.86927,3485.3,3484.8,6.96980217]
[1719823166406,2.86927,3485.2,3484.8,6.96980217]
[1719823166921,2.86938,3485.1,3484.8,6.96980217]
[1719823167213,2.86938,3485.1,3484.3,19.87]
[1719823167214,2.86967,3484.8,3484.4,0.808]
[1719823167376,2.86967,3484.8,3484.6,0.808]
[1719823167577,2.86952,3484.9,3484.6,0.808]
[1719823167769,2.86952,3484.9,3484.8,0.808]
[1719823169207,2.86927,3485.3,3484.8,0.808]
[1719823169523,0.52862,3485.6,3484.3,2.92740585]
[1719823169671,2.86936,3485.1,3484.9,0.808]
[1719823170025,2.86936,3485.1,3484.7,0.808]
[1719823170185,0.573855,3485.1,3484.3,6.16180217]
[1719823170391,2.4654,3485.0,3484.3,6.16180217]
[1719823170586,2.86987,3484.5,3484.3,6.16180217]
[1719823170793,2.86987,3484.5,3484.2,0.808]
[1719823172786,2.86987,3484.5,3484.4,0.808]
[1719823175182,2.86979,3484.6,3484.4,0.808]
[1719823175750,2.86958,3484.9,3484.4,0.808]
[1719823175913,5.33487,3485.0,3484.6,0.808]
[1719823176099,2.86956,3484.9,3484.6,0.808]
[1719823177019,3.0,3485.1,3484.8,0.808]
[1719823177339,2.86944,3485.0,3484.6,0.808]
[1719823178006,2.86952,3484.9,3484.3,2.4222]
[1719823178330,5.86927,3485.2,3484.6,0.808]
[1719823178331,2.86944,3485.0,3484.6,0.808]
[1719823179099,2.86944,3485.0,3484.4,0.55]
[1719823179337,2.86944,3485.0,3484.7,0.808]
[1719823179732,2.86944,3485.0,3484.6,0.808]
[1719823179733,2.86967,3484.8,3484.6,0.808]
[1719823180238,2.86981,3484.6,3484.5,0.808]
[1719823180537,2.86981,3484.6,3484.1,0.1204176]
[1719823180538,2.86981,3484.6,3484.3,0.808]
[1719823180745,0.586944,3485.0,3484.1,0.1204176]
[1719823180929,0.586944,3485.0,3484.6,0.808]
[1719823180930,5.86951,3485.0,3484.6,0.808]
[1719823182034,2.8696,3484.8,3484.6,0.808]
[1719823183123,5.86951,3485.0,3484.6,0.808]
[1719823186659,2.86952,3484.9,3484.6,0.808]
[1719823187516,2.86952,3484.9,3484.2,3.42007]
[1719823187830,2.86952,3484.9,3484.4,0.808]
[1719823188031,3.743407,3484.9,3484.4,0.808]
[1719823189520,2.86952,3484.9,3484.4,0.808]
[1719823191158,2.86965,3484.8,3484.4,0.808]
[1719823194062,3.0,3485.0,3484.4,0.808]
[1719823194063,2.86969,3484.7,3484.4,0.808]
[1719823194742,2.2676,3484.8,3484.1,0.1204176]
[1719823194943,2.86992,3484.5,3484.2,0.808]
[1719823195154,2.86995,3484.4,3484.2,0.808]
[1719823195972,2.86977,3484.6,3484.2,0.808]
[1719823196264,2.86977,3484.6,3484.4,0.808]
[1719823196630,2.86985,3484.5,3484.4,0.808]
[1719823197029,2.86985,3484.5,3484.2,0.808]
[1719823197729,2.86985,3484.5,3484.4,0.808]
[1719823198576,2.86994,3484.4,3484.1,0.1204176]
[1719823198868,2.87003,3484.3,3484.1,0.1204176]
[1719823199935,5.86948,3485.0,3484.1,0.1204176]
[1719823200139,2.86994,3484.4,3484.2,0.808]
[1719823201694,2.86994,3484.4,3484.1,0.1204176]
[1719823201695,2.87001,3484.3,3484.1,0.1204176]
[1719823202391,5.74018,3484.2,3484.1,0.1204176]
[1719823202610,8.74018,3484.2,3484.1,0.1204176]
[1719823202897,9.3081732,3484.2,3484.1,0.1204176]
[1719823203102,6.4380832,3484.2,3484.1,0.1204176]
[1719823203256,3.0,3484.6,3484.1,0.1204176]
[1719823203456,2.87009,3484.2,3484.1,0.9284176]
[1719823204352,5.74018,3484.2,3484.1,0.1204176]
[1719823206397,8.61027,3484.2,3484.1,0.1204176]
[1719823206595,9.41827,3484.2,3484.1,0.1204176]
[1719823206772,13.593167,3484.2,3484.1,0.1204176]
[1719823207184,5.74184,3483.2,3483.0,6.16180217]
[1719823207381,2.87154,3482.5,3482.3,6.18625386]
[1719823207600,2.87154,3482.5,3482.3,0.02445169]
[1719823207810,2.87121,3482.9,3482.4,0.808]
[1719823208097,2.87121,3482.9,3482.6,0.808]
[1719823208317,2.87084,3483.3,3482.8,0.808]
[1719823208517,2.87098,3483.2,3482.4,6.16180217]
[1719823208690,2.87111,3483.0,3482.8,0.808]
[1719823209087,2.87097,3483.2,3482.8,0.808]
[1719823209293,2.87117,3482.9,3482.4,6.16180217]
[1719823209508,2.87117,3482.9,3482.4,7.01268756]
[1719823209707,2.87117,3482.9,3482.6,0.808]
[1719823210080,2.87145,3482.6,3482.3,0.02445169]
[1719823210276,2.87145,3482.6,3482.3,0.83245169]
[1719823210481,2.87145,3482.6,3482.5,0.808]
[1719823210909,2.87131,3482.8,3482.5,0.808]
[1719823211114,2.87119,3482.9,3482.5,0.808]
[1719823211115,2.87134,3482.7,3482.5,0.808]
[1719823211411,2.87119,3482.9,3482.5,0.808]
[1719823211620,2.87102,3483.1,3482.7,0.808]
[1719823211808,2.8711,3483.0,3482.7,0.808]
[1719823212021,2.8711,3483.0,3482.6,0.808]
[1719823212315,2.4949,3483.0,3482.3,0.02445169]
[1719823212522,2.87158,3482.4,3482.3,0.02445169]
[1719823214020,2.87158,3482.4,3482.3,0.83245169]
[1719823215214,3.01358,3482.4,3482.3,0.83245169]
[1719823215412,3.01358,3482.4,3482.3,0.02445169]
[1719823216921,9.345253,3482.4,3482.3,0.02445169]
[1719823217242,8.75674,3482.4,3482.3,0.02445169]
[1719823217631,11.09544,3482.4,3482.3,0.02445169]
[1719823217948,8.22386,3482.4,3482.3,0.02445169]
[1719823218153,5.88516,3482.4,3482.3,0.02445169]
[1719823218362,6.760817,3482.4,3482.3,0.02445169]
[1719823219371,11.951597,3482.4,3482.3,0.02445169]
[1719823220157,14.951597,3482.4,3482.3,0.02445169]
[1719823220859,9.760817,3482.4,3482.3,0.02445169]
[1719823221063,8.88516,3482.4,3482.3,0.02445169]
[1719823221262,6.01358,3482.4,3482.3,0.02445169]
[1719823221476,6.01358,3482.4,3482.3,0.83245169]
[1719823221763,0.142,3482.4,3482.3,0.83245169]
[1719823221932,3.01358,3482.4,3482.3,0.83245169]
[1719823222311,0.142,3482.4,3482.3,0.83245169]
[1719823223050,0.142,3482.4,3482.3,3.20655169]
[1719823223213,0.142,3482.4,3482.3,6.94886686]
[1719823223658,0.142,3482.4,3482.3,4.07720686]
[1719823223859,0.142,3482.4,3482.3,0.02445169]
[1719823225117,5.88516,3482.4,3482.3,0.02445169]
[1719823227219,8.75674,3482.4,3482.3,0.02445169]
[1719823227462,11.75674,3482.4,3482.3,0.02445169]
[1719823227760,8.88516,3482.4,3482.3,0.02445169]
[1719823227922,10.288736,3482.4,3482.3,0.02445169]
[1719823229357,3.01358,3482.4,3482.3,0.02445169]
[1719823229555,0.142,3482.4,3482.3,0.02445169]
[1719823230750,3.01358,3482.4,3482.3,0.02445169]
[1719823231734,5.88516,3482.4,3482.3,0.02445169]
[1719823235363,11.01234,3482.4,3482.3,0.02445169]
[1719823235689,15.703311,3482.4,3482.3,0.02445169]
[1719823236162,24.472471,3482.4,3482.3,1.69e-06]
[1719823236369,21.600891,3482.4,3482.3,1.69e-06]
[1719823236766,15.703311,3482.4,3482.3,1.69e-06]
[1719823238160,18.574891,3482.4,3482.3,1.69e-06]
[1719823238407,21.600891,3482.4,3482.3,1.69e-06]
[1719823238699,18.574891,3482.4,3482.3,1.69e-06]
[1719823238899,21.600891,3482.4,3482.3,1.69e-06]
[1719823239103,15.703311,3482.4,3482.3,1.69e-06]
[1719823241773,10.447711,3482.4,3482.3,1.69e-06]
[1719823243175,7.576131,3482.4,3482.3,1.69e-06]
[1719823243380,10.576131,3482.4,3482.3,1.69e-06]
[1719823245017,13.447711,3482.4,3482.3,1.69e-06]
[1719823245904,18.789711,3482.4,3482.3,1.69e-06]
[1719823246615,21.661291,3482.4,3482.3,1.69e-06]
[1719823248356,24.532871,3482.4,3482.3,1.69e-06]
[1719823248803,24.94056886,3482.4,3482.3,1.69e-06]
[1719823249203,24.94056886,3482.4,3480.6,0.1204176]
[1719823249204,5.74596,3480.7,3480.6,0.1204176]
[1719823249731,2.87298,3480.7,3480.6,0.1204176]
[1719823250653,2.87282,3480.9,3480.6,0.1204176]
[1719823250856,2.87267,3481.1,3480.6,0.1204176]
[1719823251207,2.87274,3481.0,3480.6,0.1204176]
[1719823251949,2.87257,3481.2,3480.6,0.1204176]
[1719823252108,2.87265,3481.1,3480.6,0.41978136]
[1719823252508,2.87249,3481.3,3480.6,0.41978136]
[1719823252761,2.87257,3481.2,3480.6,0.41978136]
[1719823253063,2.87282,3480.9,3480.6,0.41978136]
[1719823253210,2.87282,3480.9,3480.6,0.1204176]
[1719823253408,6.026,3481.6,3480.6,0.1204176]
[1719823253724,2.87298,3480.7,3480.6,0.1204176]
[1719823254068,2.8729,3480.8,3480.6,0.1204176]
[1719823254413,2.87298,3480.7,3480.6,0.1204176]
[1719823254607,5.74596,3480.7,3480.6,0.1204176]
[1719823255916,8.61894,3480.7,3480.6,0.1204176]
[1719823256113,9.721674,3480.7,3480.6,0.1204176]
[1719823256357,12.721674,3480.7,3480.6,0.1204176]
[1719823257714,15.594654,3480.7,3480.6,0.1204176]
[1719823258234,5.74678,3480.2,3480.1,5.0]
[1719823258438,8.74678,3480.2,3480.1,5.0]
[1719823258825,11.62017,3480.2,3480.1,5.0]
[1719823259032,12.208407,3480.2,3480.1,5.0]
[1719823261182,2.87331,3480.4,3480.1,5.0]
[1719823261344,2.2783,3481.3,3480.1,5.0]
[1719823261345,2.87268,3481.1,3480.1,5.0]
[1719823261546,2.87225,3481.6,3480.4,2.87317]
[1719823261787,2.87225,3481.6,3480.6,4.1961]
[1719823261788,2.87247,3481.4,3480.6,4.1961]
[1719823262079,2.87225,3481.6,3480.6,4.1961]
[1719823262080,2.8723,3481.6,3480.6,4.1961]
[1719823262238,2.8723,3481.6,3480.7,0.55]
[1719823262443,2.87234,3481.5,3480.7,0.55]
[1719823262648,5.16391,3482.3,3480.8,0.52883633]
[1719823262649,2.8723,3481.6,3480.8,0.52883633]
[1719823263294,2.87246,3481.4,3480.8,0.52883633]
[1719823263658,2.87266,3481.1,3480.6,2.2541]
[1719823264066,2.87274,3481.0,3480.6,2.2541]
[1719823264266,2.87272,3481.1,3480.3,6.16180217]
[1719823264936,2.87272,3481.1,3480.3,9.03511217]
[1719823265133,2.87246,3481.4,3480.5,2.87313]
[1719823265368,2.87227,3481.6,3480.6,0.90349322]
[1719823265369,2.8725,3481.3,3480.6,0.90349322]
[1719823265571,2.87237,3481.5,3480.6,5.71855322]
[1719823265743,2.8721,3481.8,3480.6,2.84549322]
[1719823266084,2.8723,3481.6,3480.7,3.48037846]
[1719823266280,2.87241,3481.4,3480.8,0.91988617]
[1719823266877,3.0,3482.0,3480.6,2.84549322]
[1719823267047,2.87245,3481.4,3480.6,2.84549322]
[1719823267675,2.8725,3481.3,3480.6,2.84549322]
[1719823268786,2.87259,3481.2,3480.6,2.84549322]
[1719823269001,6.026,3482.1,3480.2,2.87338]
[1719823269295,2.87299,3480.7,3480.2,1.942]
[1719823269479,2.87299,3480.7,3480.0,2.3112]